[Event "26th Abu Dhabi Master 2019"]
[Site "Abu Dhabi"]
[Date "2019.08.02"]
[Round "1.3"]
[White "Salem, A.R. Saleh"]
[Black "Rathanvel, V S"]
[Result "1-0"]
[ECO "B90"]
[WhiteElo "2672"]
[BlackElo "2367"]
[Annotator "RC"]
[PlyCount "87"]
[EventDate "2019.08.02"]
[EventType "swiss"]
[EventCountry "UAE"]
[SourceTitle "playchess.com"]
[Source "ChessBase"]
[SourceQuality "1"]
[TimeControl "5400+30"]

1. e4 {[%emt 0:00:03]} c5 {[%emt 0:00:00]} 2. Nf3 {[%emt 0:00:05]} d6 {[%emt 0:00:00]} 3. d4 {[%emt 0:00:10]} cxd4 {[%emt 0:00:02]} 4. Nxd4 {[%emt 0:00:02]} Nf6 {[%emt 0:00:12]} 5. Nc3 {[%emt 0:00:06]} a6 {[%emt 0:00:08]} 6. h3 {[%emt 0:00:08]} e5 {[%emt 0:00:06]} 7. Nde2 {[%emt 0:00:10]} h5 {[%emt 0:00:08]} 8. Bg5 {[%emt 0:00:07]} Be6 {[%emt 0:00:10]} 9. Bxf6 {[%emt 0:00:28]} Qxf6 {[%emt 0:00:11]} 10. Nd5 {[%emt 0:00:09]} Qd8 {[%emt 0:00:31]} 11. Qd3 {[%emt 0:00:20]} Nd7 {[%emt 0:00:25]} 12. O-O-O {[%emt 0:00:31]} b5 {[%emt 0:00:17]} 13. Nec3 {[%emt 0:00:38]} g6 {[%emt 0:00:15]} 14. Kb1 {[%emt 0:00:55]} Nc5 {[%emt 0:00:48]} 15. Qe2 {[%emt 0:00:01]} Bg7 {[%emt 0:00:15]} 16. h4 {[%emt 0:00:05]} Rb8 {[%emt 0:00:59]} 17. b4 {[%emt 0:05:15]} Nd7 {[%emt 0:02:50]} 18. a4 {[%emt 0:00:05]} a5 {[%emt 0:18:33]} 19. Nxb5 {[%emt 0:04:41]} O-O {[%emt 0:00:43]} 20. Ndc7 {[%emt 0:05:28]} Nb6 {[%emt 0:33:01]} 21. Qe3 {[%emt 0:16:49]} Bd7 {[%emt 0:15:05]} 22. Rxd6 {[%emt 0:05:08]} Nxa4 {[%emt 0:16:06]} 23. Qa7 {[%emt 0:15:34]} axb4 {[%emt 0:08:19]} 24. Nd5 {[%emt 0:00:36]} Bxb5 {[%emt 0:00:47]} 25. Rxd8 {[%emt 0:00:14]} Rfxd8 {[%emt 0:00:05]} 26. Bxb5 {[%emt 0:16:01]} Nc3+ {[%emt 0:00:07]} 27. Nxc3 {[%emt 0:00:02]} bxc3 {[%emt 0:00:07]} 28. Qa5 {[%emt 0:00:06]} Bf8 {[%emt 0:02:02]} 29. Rh3 {[%emt 0:00:38]} Bc5 {[%emt 0:01:46]} 30. Rxc3 {[%emt 0:03:09]} Rd1+ {[%emt 0:00:06]} 31. Ka2 {[%emt 0:00:29]} Bd4 {[%emt 0:00:08]} 32. Ra3 {[%emt 0:01:12]} Ra1+ {[%emt 0:00:41]} 33. Kb3 {[%emt 0:00:01]} Rb1+ {[%emt 0:00:13]} 34. Kc4 {[%emt 0:01:06]} Bb6 {[%emt 0:01:17]} 35. Qa6 {[%emt 0:00:02]} Bxf2 {[%emt 0:00:23]} 36. Qc6 {[%emt 0:04:57]} Kg7 {[%emt 0:00:42]} 37. Rf3 {[%emt 0:01:26]} Bxh4 {[%emt 0:00:29]} 38. Qd7 {[%emt 0:01:13]} Kh6 {[%emt 0:00:27]} 39. Rxf7 {[%emt 0:00:47]} Bd8 {[%emt 0:00:29]} 40. Rh7+ {[%emt 0:02:20]} Kg5 {[%emt 0:00:06]} 41. Qd2+ {[%emt 0:00:20]} Kh4 {[%emt 0:00:22]} 42. Bd7 {[%emt 0:02:56]} Bb6 {[%emt 0:00:34]} 43. g3+ {[%emt 0:01:14]} Kxg3 {[%emt 0:00:07]} 44. Qg5+ {[%emt 0:00:05]} 1-0

[Event "26th Abu Dhabi Master 2019"]
[Site "Abu Dhabi"]
[Date "2019.08.02"]
[Round "1.13"]
[White "Bartel, Mateusz"]
[Black "Kathmale, Sameer"]
[Result "1-0"]
[ECO "E12"]
[WhiteElo "2600"]
[BlackElo "2326"]
[Annotator "RC"]
[PlyCount "59"]
[EventDate "2019.08.02"]
[EventType "swiss"]
[EventCountry "UAE"]
[SourceTitle "playchess.com"]
[Source "ChessBase"]
[SourceQuality "1"]
[TimeControl "5400+30"]

1. d4 {[%emt 0:00:00]} Nf6 {[%emt 0:06:05]} 2. c4 {[%emt 0:00:00]} e6 {[%emt 0:00:48]} 3. Nf3 {[%emt 0:00:44]} b6 {[%emt 0:00:20]} 4. Bf4 {[%emt 0:00:08]} Bb7 {[%emt 0:01:00]} 5. e3 {[%emt 0:00:09]} Bb4+ {[%emt 0:05:53]} 6. Nfd2 {[%emt 0:01:09]} O-O {[%emt 0:01:00]} 7. a3 {[%emt 0:01:02]} Bd6 {[%emt 0:13:26]} 8. Bg3 {[%emt 0:03:20]} Nc6 {[%emt 0:05:17]} 9. Nc3 {[%emt 0:01:13]} Bxg3 {[%emt 0:09:08]} 10. hxg3 {[%emt 0:00:05]} d5 {[%emt 0:02:09]} 11. g4 {[%emt 0:24:07]} Ne4 {[%emt 0:07:05]} 12. Qc2 {[%emt 0:08:04]} f5 {[%emt 0:11:00]} 13. gxf5 {[%emt 0:00:22]} Nxd2 {[%emt 0:03:11]} 14. fxe6 {[%emt 0:05:53]} Ne4 {[%emt 0:00:11]} 15. cxd5 {[%emt 0:00:48]} Nf6 {[%emt 0:05:48]} 16. dxc6 {[%emt 0:02:40]} Bxc6 {[%emt 0:00:02]} 17. O-O-O {[%emt 0:02:21]} Qe7 {[%emt 0:04:53]} 18. d5 {[%emt 0:01:20]} Bb7 {[%emt 0:00:10]} 19. g4 {[%emt 0:03:12]} g6 {[%emt 0:00:23]} 20. g5 {[%emt 0:01:16]} Ng4 {[%emt 0:02:03]} 21. Ne4 {[%emt 0:01:16]} Rad8 {[%emt 0:02:20]} 22. Bh3 {[%emt 0:09:14]} Rxf2 {[%emt 0:02:09]} 23. Nxf2 {[%emt 0:00:07]} Nxe3 {[%emt 0:00:12]} 24. Qc3 {[%emt 0:00:19]} Nxd1 {[%emt 0:02:54]} 25. Rxd1 {[%emt 0:00:33]} Bxd5 {[%emt 0:00:14]} 26. Ng4 {[%emt 0:09:02]} Qxg5+ {[%emt 0:00:20]} 27. Qe3 {[%emt 0:02:16]} Qe7 {[%emt 0:02:46]} 28. Qd4 {[%emt 0:00:24]} Qg5+ {[%emt 0:03:56]} 29. Rd2 {[%emt 0:00:17]} Kf8 {[%emt 0:03:52]} 30. Nf6 {[%emt 0:01:01]} 1-0

[Event "26th Abu Dhabi Master 2019"]
[Site "Abu Dhabi"]
[Date "2019.08.02"]
[Round "1.18"]
[White "Srijit Paul"]
[Black "Antipov, Mikhail Al."]
[Result "1/2-1/2"]
[ECO "B36"]
[WhiteElo "2298"]
[BlackElo "2582"]
[Annotator "ChessBase"]
[PlyCount "174"]
[EventDate "2019.08.02"]
[EventType "swiss"]
[EventCountry "UAE"]
[SourceTitle "playchess.com"]
[Source "ChessBase"]
[SourceQuality "1"]
[TimeControl "5400+30"]

1. e4 c5 2. Nf3 Nc6 {[%emt 0:04:59]} 3. d4 {[%emt 0:00:00]} cxd4 {[%emt 0:00:04]} 4. Nxd4 {[%emt 0:00:08]} g6 {[%emt 0:00:06]} 5. c4 {[%emt 0:00:12]} Nf6 {[%emt 0:00:08]} 6. Nc3 {[%emt 0:00:05]} d6 {[%emt 0:00:07]} 7. f3 {[%emt 0:00:05]} Bg7 {[%emt 0:00:06]} 8. Be3 {[%emt 0:00:07]} O-O {[%emt 0:00:07]} 9. Be2 {[%emt 0:00:16]} Nh5 {[%emt 0:00:44]} 10. O-O {[%emt 0:08:19]} Nf4 {[%emt 0:00:20]} 11. Kh1 {[%emt 0:10:44]} Nxd4 {[%emt 0:13:52]} 12. Bxd4 {[%emt 0:00:07]} Be6 {[%emt 0:00:09]} 13. Bxg7 {[%emt 0:05:23]} Kxg7 {[%emt 0:00:02]} 14. Qd2 {[%emt 0:00:11]} Nxe2 {[%emt 0:01:37]} 15. Nxe2 {[%emt 0:01:30]} f6 {[%emt 0:01:16]} 16. b3 {[%emt 0:03:36]} a6 {[%emt 0:03:14]} 17. a4 {[%emt 0:13:31]} Rc8 {[%emt 0:01:01]} 18. Rfd1 {[%emt 0:01:17]} Bf7 {[%emt 0:01:29]} 19. Nc3 {[%emt 0:03:17]} Qa5 {[%emt 0:07:40]} 20. Qd3 {[%emt 0:03:35]} Rfe8 {[%emt 0:10:37]} 21. h3 {[%emt 0:10:29]} Qb4 {[%emt 0:02:34]} 22. Rab1 {[%emt 0:02:41]} Rc5 {[%emt 0:04:35]} 23. Re1 {[%emt 0:02:39]} Rc6 {[%emt 0:14:11]} 24. Re3 {[%emt 0:04:12]} Qc5 {[%emt 0:02:07]} 25. Ra1 {[%emt 0:01:24]} Rcc8 {[%emt 0:01:05]} 26. Re2 {[%emt 0:03:56]} Qe5 {[%emt 0:01:51]} 27. Ree1 {[%emt 0:01:19]} Rc5 {[%emt 0:02:12]} 28. Qd2 {[%emt 0:00:39]} g5 {[%emt 0:00:17]} 29. Rac1 {[%emt 0:01:35]} h5 {[%emt 0:02:49]} 30. Nd5 {[%emt 0:00:32]} e6 {[%emt 0:01:49]} 31. Nb6 {[%emt 0:00:53]} Qg3 {[%emt 0:01:45]} 32. Red1 {[%emt 0:03:00]} Rc6 {[%emt 0:08:08]} 33. a5 {[%emt 0:00:08]} g4 {[%emt 0:00:04]} 34. fxg4 {[%emt 0:00:46]} hxg4 {[%emt 0:00:01]} 35. Rc3 {[%emt 0:00:33]} Qe5 {[%emt 0:02:42]} 36. Nd7 {[%emt 0:00:44]} Qg5 {[%emt 0:00:45]} 37. Qxg5+ {[%emt 0:04:29]} fxg5 {[%emt 0:00:06]} 38. hxg4 {[%emt 0:00:12]} e5 {[%emt 0:09:25]} 39. Rf3 {[%emt 0:07:20]} Bg6 {[%emt 0:02:32]} 40. Nf6 {[%emt 0:00:14]} Rh8+ {[%emt 0:00:00]} 41. Kg1 {[%emt 0:00:08]} b6 {[%emt 0:00:00]} 42. axb6 {[%emt 0:01:04]} Rxb6 {[%emt 0:01:24]} 43. c5 {[%emt 0:00:09]} Rc6 {[%emt 0:00:14]} 44. Rxd6 {[%emt 0:00:32]} Rxd6 {[%emt 0:00:28]} 45. cxd6 {[%emt 0:00:01]} Rd8 {[%emt 0:00:08]} 46. d7 {[%emt 0:01:26]} a5 {[%emt 0:00:18]} 47. Kf2 {[%emt 0:02:36]} Bf7 {[%emt 0:00:05]} 48. Nh5+ {[%emt 0:03:44]} Kf8 {[%emt 0:00:01]} 49. Rf5 {[%emt 0:00:52]} Rxd7 {[%emt 0:00:17]} 50. Rxe5 {[%emt 0:00:01]} Re7 {[%emt 0:02:02]} 51. Rxa5 {[%emt 0:00:27]} Rxe4 {[%emt 0:00:12]} 52. Rxg5 {[%emt 0:00:04]} Bxb3 {[%emt 0:00:12]} 53. Rf5+ {[%emt 0:00:43]} Ke7 {[%emt 0:00:20]} 54. Kg3 {[%emt 0:01:39]} Be6 {[%emt 0:00:26]} 55. Rf4 {[%emt 0:00:46]} Re2 {[%emt 0:00:18]} 56. Rb4 {[%emt 0:00:24]} Bf7 {[%emt 0:00:58]} 57. Nf4 {[%emt 0:00:16]} Rd2 {[%emt 0:00:24]} 58. Kh4 {[%emt 0:00:37]} Kf8 {[%emt 0:00:29]} 59. Kg5 {[%emt 0:00:06]} Ra2 {[%emt 0:00:53]} 60. Rb7 {[%emt 0:01:19]} Kg8 {[%emt 0:00:28]} 61. g3 {[%emt 0:00:14]} Ra1 {[%emt 0:01:00]} 62. Rb6 {[%emt 0:00:08]} Kg7 {[%emt 0:00:35]} 63. Nh5+ {[%emt 0:00:36]} Kh7 {[%emt 0:00:29]} 64. Rb7 {[%emt 0:00:07]} Kg8 {[%emt 0:00:17]} 65. Nf6+ {[%emt 0:00:10]} Kf8 {[%emt 0:00:05]} 66. Nd7+ {[%emt 0:00:54]} Kg8 {[%emt 0:00:13]} 67. Ne5 {[%emt 0:00:16]} Ra5 {[%emt 0:01:09]} 68. Kf4 {[%emt 0:00:33]} Be6 {[%emt 0:00:18]} 69. Re7 {[%emt 0:00:10]} Bb3 {[%emt 0:00:49]} 70. g5 {[%emt 0:00:44]} Ra4+ {[%emt 0:00:09]} 71. Ke3 {[%emt 0:00:46]} Bc2 {[%emt 0:00:41]} 72. Kd2 {[%emt 0:01:26]} Bf5 {[%emt 0:00:52]} 73. Rf7 {[%emt 0:00:46]} Bb1 {[%emt 0:00:55]} 74. Rf1 {[%emt 0:00:13]} Ra5 {[%emt 0:01:08]} 75. Re1 {[%emt 0:00:48]} Rd5+ {[%emt 0:00:06]} 76. Kc3 {[%emt 0:00:08]} Bf5 {[%emt 0:00:04]} 77. Re3 {[%emt 0:00:27]} Kg7 {[%emt 0:00:12]} 78. Kb4 {[%emt 0:00:13]} Rd4+ {[%emt 0:00:18]} 79. Kc5 {[%emt 0:00:19]} Rd1 {[%emt 0:00:10]} 80. Kc6 {[%emt 0:00:49]} Rd4 {[%emt 0:00:36]} 81. Kc7 {[%emt 0:00:23]} Rd1 {[%emt 0:00:32]} 82. Rf3 {[%emt 0:00:08]} Bh3 {[%emt 0:01:47]} 83. Rf7+ {[%emt 0:01:44]} Kg8 {[%emt 0:00:01]} 84. g6 {[%emt 0:00:43]} Be6 {[%emt 0:00:08]} 85. Re7 {[%emt 0:00:21]} Bf5 {[%emt 0:00:21]} 86. g4 {[%emt 0:00:37]} Bxg6 {[%emt 0:00:16]} 87. Nxg6 Rd7+ {[%emt 0:00:08]} 1/2-1/2

[Event "26th Abu Dhabi Master 2019"]
[Site "Abu Dhabi"]
[Date "2019.08.02"]
[Round "1.21"]
[White "Abdusattorov, Nodirbek"]
[Black "Salem, Ghuloom"]
[Result "1-0"]
[ECO "C40"]
[WhiteElo "2598"]
[BlackElo "2205"]
[Annotator "ChessBase"]
[PlyCount "164"]
[EventDate "2019.08.02"]
[EventType "swiss"]
[EventCountry "UAE"]
[SourceTitle "playchess.com"]
[Source "ChessBase"]
[SourceQuality "1"]
[TimeControl "5400+30"]

1. e4 {[%emt 0:00:00]} e5 {[%emt 0:20:58]} 2. Nf3 {[%emt 0:00:00]} f5 {[%emt 0:00:14]} 3. exf5 {[%emt 0:02:48]} e4 {[%emt 0:00:32]} 4. Qe2 {[%emt 0:01:58]} Qe7 {[%emt 0:02:22]} 5. Nd4 {[%emt 0:01:05]} c5 {[%emt 0:01:48]} 6. Nb5 {[%emt 0:01:43]} d5 {[%emt 0:00:25]} 7. d3 {[%emt 0:00:20]} a6 {[%emt 0:00:14]} 8. N5c3 {[%emt 0:01:02]} Nf6 {[%emt 0:04:23]} 9. Bg5 {[%emt 0:01:09]} exd3 {[%emt 0:01:44]} 10. cxd3 {[%emt 0:00:19]} Qxe2+ {[%emt 0:02:00]} 11. Bxe2 {[%emt 0:00:05]} Nbd7 {[%emt 0:02:07]} 12. Nd2 {[%emt 0:04:47]} Bd6 {[%emt 0:03:33]} 13. g4 {[%emt 0:04:35]} b5 {[%emt 0:03:46]} 14. Bxf6 {[%emt 0:03:37]} Nxf6 {[%emt 0:09:31]} 15. Bf3 {[%emt 0:00:05]} Bb7 {[%emt 0:05:01]} 16. g5 {[%emt 0:00:05]} b4 {[%emt 0:01:09]} 17. gxf6 {[%emt 0:00:06]} bxc3 {[%emt 0:00:06]} 18. bxc3 {[%emt 0:00:04]} gxf6 {[%emt 0:03:06]} 19. Rb1 {[%emt 0:00:03]} O-O-O {[%emt 0:07:27]} 20. O-O {[%emt 0:01:45]} Rd7 {[%emt 0:06:28]} 21. Rb6 {[%emt 0:03:26]} Rg8+ {[%emt 0:09:15]} 22. Kh1 {[%emt 0:00:20]} Rg5 {[%emt 0:00:22]} 23. Rfb1 {[%emt 0:04:11]} h5 {[%emt 0:04:17]} 24. Nc4 {[%emt 0:12:00]} dxc4 {[%emt 0:07:24]} 25. Bxb7+ {[%emt 0:00:07]} Rxb7 {[%emt 0:00:56]} 26. Rxb7 {[%emt 0:00:10]} cxd3 {[%emt 0:00:02]} 27. R7b6 {[%emt 0:04:31]} Kc7 {[%emt 0:00:06]} 28. Rxa6 {[%emt 0:02:45]} Rxf5 {[%emt 0:00:11]} 29. Kg2 {[%emt 0:01:28]} Be5 {[%emt 0:02:10]} 30. Ra7+ {[%emt 0:05:48]} Kc6 {[%emt 0:00:19]} 31. c4 {[%emt 0:00:23]} Bd4 {[%emt 0:00:59]} 32. f3 {[%emt 0:02:45]} Rg5+ {[%emt 0:00:35]} 33. Kh1 {[%emt 0:02:22]} d2 {[%emt 0:00:22]} 34. Ra6+ {[%emt 0:12:22]} Kc7 {[%emt 0:00:38]} 35. Ra7+ {[%emt 0:03:08]} Kd6 {[%emt 0:00:11]} 36. Rab7 {[%emt 0:01:17]} Ke5 {[%emt 0:00:59]} 37. h4 {[%emt 0:10:50]} Rg3 {[%emt 0:01:02]} 38. Rd1 {[%emt 0:01:45]} Be3 {[%emt 0:00:50]} 39. Rb3 {[%emt 0:05:29]} Kd4 {[%emt 0:00:43]} 40. a4 {[%emt 0:00:25]} Bf4 {[%emt 0:01:05]} 41. a5 {[%emt 0:00:27]} Kxc4 {[%emt 0:00:22]} 42. Ra3 {[%emt 0:00:37]} Kb4 {[%emt 0:00:27]} 43. Raa1 {[%emt 0:00:14]} Be5 {[%emt 0:00:17]} 44. Ra2 {[%emt 0:00:40]} Bc3 {[%emt 0:00:13]} 45. a6 {[%emt 0:01:06]} Rg8 {[%emt 0:00:04]} 46. Rb1+ {[%emt 0:00:18]} Kc4 {[%emt 0:00:07]} 47. a7 {[%emt 0:00:08]} Ra8 {[%emt 0:00:13]} 48. Kg2 {[%emt 0:00:58]} Kd3 {[%emt 0:00:12]} 49. Rd1 {[%emt 0:02:14]} c4 {[%emt 0:00:06]} 50. Ra4 {[%emt 0:03:54]} Bd4 {[%emt 0:02:18]} 51. Rxd2+ {[%emt 0:00:35]} Kxd2 {[%emt 0:00:05]} 52. Rxc4 {[%emt 0:00:02]} Bxa7 {[%emt 0:00:10]} 53. Kg3 {[%emt 0:00:28]} Be3 {[%emt 0:00:23]} 54. f4 {[%emt 0:00:40]} Rg8+ {[%emt 0:00:27]} 55. Kf3 {[%emt 0:00:04]} Rg4 {[%emt 0:00:13]} 56. Ra4 {[%emt 0:00:05]} Bb6 {[%emt 0:01:40]} 57. Rb4 {[%emt 0:00:32]} Bc7 {[%emt 0:00:16]} 58. Rc4 {[%emt 0:00:04]} Bb8 {[%emt 0:01:11]} 59. Rb4 {[%emt 0:00:08]} Rg8 {[%emt 0:00:43]} 60. Rb5 {[%emt 0:00:24]} Rg4 {[%emt 0:00:33]} 61. Rxb8 {[%emt 0:00:05]} Rxh4 {[%emt 0:00:10]} 62. Rf8 {[%emt 0:00:30]} Rh3+ {[%emt 0:00:06]} 63. Ke4 {[%emt 0:00:35]} Re3+ {[%emt 0:00:18]} 64. Kf5 {[%emt 0:00:04]} h4 {[%emt 0:00:06]} 65. Rxf6 {[%emt 0:00:31]} h3 {[%emt 0:00:07]} 66. Rh6 {[%emt 0:00:05]} Rg3 {[%emt 0:00:22]} 67. Ke4 {[%emt 0:00:36]} Re3+ {[%emt 0:00:47]} 68. Kd4 {[%emt 0:00:07]} Ke2 {[%emt 0:00:35]} 69. f5 {[%emt 0:00:14]} Kf2 {[%emt 0:00:21]} 70. f6 {[%emt 0:00:07]} Rf3 {[%emt 0:00:16]} 71. Ke4 {[%emt 0:00:46]} Kg2 {[%emt 0:00:23]} 72. Rg6+ {[%emt 0:00:25]} Rg3 {[%emt 0:00:11]} 73. f7 {[%emt 0:00:14]} Rxg6 {[%emt 0:00:55]} 74. f8=Q {[%emt 0:00:07]} h2 {[%emt 0:00:21]} 75. Qf3+ {[%emt 0:00:23]} Kg1 {[%emt 0:00:08]} 76. Qd1+ {[%emt 0:00:48]} Kg2 {[%emt 0:00:36]} 77. Qc2+ {[%emt 0:00:27]} Kg1 {[%emt 0:00:13]} 78. Qb1+ {[%emt 0:00:39]} Kg2 {[%emt 0:00:07]} 79. Qa2+ {[%emt 0:00:15]} Kg1 {[%emt 0:00:07]} 80. Ke3 {[%emt 0:00:29]} Rg3+ {[%emt 0:00:59]} 81. Kf4 {[%emt 0:00:05]} Rf3+ {[%emt 0:00:04]} 82. Kxf3 {[%emt 0:00:05]} h1=Q+ {[%emt 0:00:20] Ke4} 1-0

[Event "26th Abu Dhabi Master 2019"]
[Site "Abu Dhabi"]
[Date "2019.08.02"]
[Round "1.22"]
[White "Samant Aditya S"]
[Black "Can, Emre"]
[Result "0-1"]
[ECO "B90"]
[WhiteElo "2296"]
[BlackElo "2595"]
[Annotator "ChessBase"]
[PlyCount "96"]
[EventDate "2019.08.02"]
[EventType "swiss"]
[EventCountry "UAE"]
[SourceTitle "playchess.com"]
[Source "ChessBase"]
[SourceQuality "1"]
[TimeControl "5400+30"]

1. e4 {[%emt 0:00:00]} c5 {[%emt 0:00:00]} 2. Nf3 {[%emt 0:00:00]} d6 {[%emt 0:00:36]} 3. d4 {[%emt 0:00:00]} cxd4 {[%emt 0:00:16]} 4. Nxd4 {[%emt 0:00:00]} Nf6 {[%emt 0:00:30]} 5. Nc3 {[%emt 0:00:09]} a6 {[%emt 0:00:36]} 6. h3 {[%emt 0:00:14]} e6 {[%emt 0:01:37]} 7. g4 {[%emt 0:00:10]} Nfd7 {[%emt 0:00:26]} 8. Be3 {[%emt 0:00:19]} b5 {[%emt 0:00:39]} 9. a3 {[%emt 0:00:09]} Bb7 {[%emt 0:00:29]} 10. g5 {[%emt 0:00:38]} Be7 {[%emt 0:01:25]} 11. h4 {[%emt 0:00:14]} Nc6 {[%emt 0:00:20]} 12. Qd2 {[%emt 0:00:27]} Rc8 {[%emt 0:00:34]} 13. Nxc6 {[%emt 0:13:54]} Bxc6 {[%emt 0:00:51]} 14. O-O-O {[%emt 0:00:09]} Rb8 {[%emt 0:01:11]} 15. h5 {[%emt 0:01:37]} a5 {[%emt 0:11:16]} 16. h6 {[%emt 0:06:29]} g6 {[%emt 0:02:04]} 17. Ne2 {[%emt 0:40:26]} e5 {[%emt 0:23:23]} 18. Ng3 {[%emt 0:06:56]} b4 {[%emt 0:05:02]} 19. axb4 {[%emt 0:01:06]} axb4 {[%emt 0:00:34]} 20. Bc4 {[%emt 0:05:53]} Qa5 {[%emt 0:03:14]} 21. c3 {[%emt 0:04:44]} O-O {[%emt 0:03:48]} 22. Kc2 {[%emt 0:03:12]} Rfc8 {[%emt 0:13:07]} 23. Ra1 {[%emt 0:01:35]} Ba4+ {[%emt 0:02:52]} 24. b3 {[%emt 0:00:42]} Rxc4 {[%emt 0:04:10]} 25. Rxa4 {[%emt 0:00:12]} Qb5 {[%emt 0:00:33]} 26. Rxb4 {[%emt 0:06:27]} Qxb4 {[%emt 0:00:42]} 27. bxc4 {[%emt 0:00:06]} Qxc4 {[%emt 0:03:07]} 28. Ra1 {[%emt 0:02:50]} Qb3+ {[%emt 0:04:19]} 29. Kd3 {[%emt 0:00:48]} Nc5+ {[%emt 0:04:41]} 30. Bxc5 {[%emt 0:01:48]} dxc5 {[%emt 0:00:08]} 31. Ke2 {[%emt 0:00:07]} Rd8 {[%emt 0:00:59]} 32. Qe1 {[%emt 0:00:42]} Bxg5 {[%emt 0:00:21]} 33. Kf1 {[%emt 0:00:35]} Bxh6 {[%emt 0:00:17]} 34. Kg2 {[%emt 0:00:09]} Bd2 {[%emt 0:01:28]} 35. Qd1 {[%emt 0:00:23]} Qxc3 {[%emt 0:00:55]} 36. Ra7 {[%emt 0:00:06]} Bg5 {[%emt 0:01:14]} 37. Qg4 {[%emt 0:00:10]} Qd2 {[%emt 0:00:57]} 38. Rc7 {[%emt 0:00:16]} Qd6 {[%emt 0:01:53]} 39. Ra7 {[%emt 0:02:17]} h6 {[%emt 0:00:27]} 40. Qe2 {[%emt 0:00:18]} Qe6 {[%emt 0:01:43]} 41. Rc7 {[%emt 0:01:16]} Rc8 {[%emt 0:00:11]} 42. Rxc8+ {[%emt 0:00:38]} Qxc8 {[%emt 0:00:04]} 43. Qc4 {[%emt 0:00:07]} h5 {[%emt 0:00:25]} 44. f3 {[%emt 0:00:31]} Be3 {[%emt 0:00:53]} 45. Nf1 {[%emt 0:00:57]} Bd4 {[%emt 0:00:16]} 46. Ng3 {[%emt 0:00:20]} Qd8 {[%emt 0:00:15]} 47. Qc1 {[%emt 0:00:11]} Qh4 {[%emt 0:00:52]} 48. Nh1 {[%emt 0:00:26]} Qf4 {[%emt 0:00:13]} 0-1

[Event "26th Abu Dhabi Master 2019"]
[Site "Abu Dhabi"]
[Date "2019.08.02"]
[Round "1.23"]
[White "Petrosyan, Manuel"]
[Black "Eynullayev, Atilla"]
[Result "1-0"]
[ECO "A34"]
[WhiteElo "2592"]
[BlackElo "2228"]
[Annotator "ChessBase"]
[PlyCount "45"]
[EventDate "2019.08.02"]
[EventType "swiss"]
[EventCountry "UAE"]
[SourceTitle "playchess.com"]
[Source "ChessBase"]
[SourceQuality "1"]
[TimeControl "5400+30"]

1. c4 Nf6 {[%emt 0:00:00]} 2. Nf3 c5 {[%emt 0:00:57]} 3. Nc3 {[%emt 0:01:43]} d5 4. cxd5 {[%emt 0:01:06]} Nxd5 {[%emt 0:00:56]} 5. e4 {[%emt 0:02:49]} Nb4 {[%emt 0:00:49]} 6. Bb5+ {[%emt 0:00:14]} N8c6 {[%emt 0:13:07]} 7. d4 {[%emt 0:00:33]} cxd4 {[%emt 0:01:52]} 8. a3 {[%emt 0:00:18]} dxc3 {[%emt 0:05:51]} 9. Qxd8+ {[%emt 0:00:38]} Kxd8 {[%emt 0:00:08]} 10. axb4 {[%emt 0:00:05]} cxb2 {[%emt 0:22:12]} 11. Bxb2 {[%emt 0:00:13]} f6 {[%emt 0:04:13]} 12. e5 {[%emt 0:04:43]} Kc7 {[%emt 0:07:35]} 13. O-O {[%emt 0:07:00]} Bg4 {[%emt 0:05:39]} 14. Nd4 {[%emt 0:14:28]} Bd7 {[%emt 0:11:02]} 15. e6 {[%emt 0:04:08]} Be8 {[%emt 0:00:20]} 16. Rfc1 {[%emt 0:01:58]} Kb6 {[%emt 0:08:18]} 17. Nxc6 {[%emt 0:07:02]} bxc6 {[%emt 0:01:26]} 18. Bc4 {[%emt 0:00:56]} g5 {[%emt 0:04:45]} 19. Bd4+ {[%emt 0:05:41]} Kb7 {[%emt 0:01:02]} 20. b5 {[%emt 0:05:43]} a5 {[%emt 0:03:50]} 21. bxa6+ {[%emt 0:00:56]} Kc7 {[%emt 0:00:05]} 22. Bc5 {[%emt 0:01:37]} Rg8 {[%emt 0:01:58]} 23. Rab1 {[%emt 0:00:54]} 1-0